Cogmind - Beta 11 X8 @@@ ROGUE MODE // 2021.12.08 @ 13:47:49 Player: btmk16 Result: Destroyed by H-77 Assassin with Coil Gun Performance ------------- Evolutions (6) 3000 Regions Visited (12) 2400 Robots Destroyed (174) 870 Value Destroyed (6046) 6046 Prototype IDs (33) 660 Alien Tech Used (2) 400 Bonus (1124) 1124 TOTAL SCORE: 14500 Bonus ------- High Alert Combat Kills 799 Follower Combat Kills 49 Met Zhirov 300 Friendly Fire -24 Cogmind --------- Core Integrity 0/1150 Matter 10/300 Energy 100/100 System Corruption 0% Temperature Cool (0) Movement Core (1500) Ox29 Location -4/Factory Parts ------- > --- POWER (1) -------- (None) > --- PROPULSION (4) --- (None) > --- UTILITY (10) ----- Huge Storage Unit Advanced Visual Processing Unit Advanced Target Analyzer Advanced Hacking Suite > --- WEAPON (4) ------- Mini Assault Cannon Mini Assault Cannon > --- INVENTORY (25) --- Improved Signal Interpreter Corruption Screen Advanced Field Recycling Unit (0) Neutron Cannon Autogun Precision Assault Rifle Precision Grenade Launcher Rocket Array Rocket Array Molecular Deconstructor Impact Mace Lance Fire Trap Peak State ------------ > --- POWER ------------ Enhanced Nuclear Core > --- PROPULSION ------- Medium Treads Medium Treads Heavy Treads > --- UTILITY ---------- Improved Thermal Converter Huge Storage Unit Compact Battery Gravity Neutralizing Apparatus Advanced Visual Processing Unit Improved Terrain Scanner Advanced Target Analyzer Transmission Jammer Advanced Hacking Suite Corruption Screen > --- WEAPON ----------- Cooled Pulse Rifle Cooled Pulse Rifle High-powered Electrolaser KE Penetrator > --- INVENTORY -------- Enhanced Nuclear Core Armored Medium Treads High-capacity Matter Pod Improved Signal Interpreter Improved Hardlight Generator Advanced Field Recycling Unit High-powered Electrolaser Neutron Cannon Autogun Precision Assault Rifle Precision Assault Rifle Mini Assault Cannon Mini Assault Cannon Hypervelocity Gauss Cannon Precision Grenade Launcher Rocket Array Rocket Array Rocket Array Molecular Deconstructor Impact Mace Lance Fire Trap [Rating: 101] Favorites ----------- Power Cold Fusion Reactor Engine Improved Ion Engine Power Core Enhanced Nuclear Core Reactor Cold Fusion Reactor Propulsion Wheel Treads Armored Treads Leg Aluminum Leg Wheel Wheel Flight Unit Improved VTOL Module Utility Huge Storage Unit Device Improved Heat Sink Storage Huge Storage Unit Processor Advanced Visual Processing Unit Hackware Advanced Hacking Suite Protection Hardened Heavy Armor Plating Weapon Cooled Pulse Rifle Energy Gun Cooled Pulse Rifle Energy Cannon Cooled Particle Cannon Ballistic Gun Precision Assault Rifle Ballistic Cannon Mini Assault Cannon Launcher Rocket Array Special Weapon Mining Laser Impact Weapon Impact Mace Slashing Weapon Katana Build | -11 -10 -9 -8 -7 -7 -7 -5 -5 -5 -5 -4 -4 ------- Run | Scr Mat Mat Mat Fac Sto Rec Fac Upp Upp Zhi Pro Fac Slots Evolved 12 | . . 2 2 2 . . 4 . . . . 2 Power . | . . . . . . . . . . . . . Propulsion 2 | . . . . . . . 2 . . . . . Utility 8 | . . . 2 2 . . 2 . . . . 2 Weapon 2 | . . 2 . . . . . . . . . . Parts Attached 208 | . 11 22 15 4 76 2 18 5 10 2 12 31 Power 11 | . 1 1 . . 5 . . . . . 1 3 Engine 5 | . 1 1 . . 1 . . . . . . 2 Core 5 | . . . . . 3 . . . . . 1 1 Reactor 1 | . . . . . 1 . . . . . . . Propulsion 38 | . 3 3 2 2 10 . 5 1 1 . 2 9 Treads 18 | . . 2 1 1 4 . 4 . 1 . 2 3 Leg 2 | . 1 . . . . . . . . . . 1 Wheel 17 | . 2 1 1 1 5 . 1 1 . . . 5 Hover . | . . . . . . . . . . . . . Flight 1 | . . . . . 1 . . . . . . . Utility 65 | . 5 4 7 2 16 2 8 4 5 . 3 9 Device 40 | . 4 4 4 1 10 1 5 1 3 . 3 4 Storage 7 | . 1 . 1 1 1 . . 3 . . . . Processor 4 | . . . . . . 1 1 . 2 . . . Hackware 1 | . . . . . . . . . . . . 1 Protection 13 | . . . 2 . 5 . 2 . . . . 4 Artifact . | . . . . . . . . . . . . . Weapon 94 | . 2 14 6 . 45 . 5 . 4 2 6 10 Energy Gun 36 | . 2 8 2 . 15 . 2 . 1 2 3 1 Energy Cannon 3 | . . . . . 2 . . . 1 . . . Ballistic Gun 19 | . . 4 3 . 9 . . . 1 . 1 1 Ballistic Cannon 13 | . . . . . 8 . 1 . . . . 4 Launcher 7 | . . . . . 3 . . . 1 . 1 2 Special Weapon 3 | . . 2 . . . . . . . . 1 . Impact Weapon 5 | . . . . . 1 . 2 . . . . 2 Slashing Weapon 8 | . . . 1 . 7 . . . . . . . Piercing Weapon . | . . . . . . . . . . . . . Special Melee Weapon . | . . . . . . . . . . . . . Unidentified Prototypes 25 | . . 1 1 1 18 . 1 . . 2 1 . Parts Lost 68 | . . 1 4 1 10 . 7 . 3 7 . 35 Power 5 | . . . . . . . . . . 1 . 4 Propulsion 25 | . . 1 1 1 5 . 3 . 1 1 . 12 Utility 22 | . . . 1 . 4 . 4 . 1 2 . 10 Weapon 16 | . . . 2 . 1 . . . 1 3 . 9 Highest Loss Streak 15 | . . 1 2 1 3 . 5 . 3 7 . 15 Average Slot Usage (%) 87 | . 99 99 97 84 89 92 84 75 84 66 75 81 Engine 3 | . 14 11 9 7 2 . . . . . . . Core 1 | . . . . . 3 . . . . . 2 3 Reactor 1 | . . . . . . 7 5 5 5 2 . . Treads 7 | . . 10 9 7 7 7 5 11 5 5 12 6 Leg 1 | . 15 . . . . . . . . . . . Wheel 7 | . 12 11 8 6 6 7 10 5 5 2 . 6 Device 17 | . 13 11 20 15 20 17 21 17 14 11 14 17 Storage 9 | . 14 11 9 7 7 7 5 10 20 11 11 8 Processor 3 | . . . . . . 4 5 5 6 11 11 10 Protection 3 | . . . 6 7 7 7 5 . . . . 1 Energy Gun 12 | . 28 26 7 7 10 7 3 5 10 13 16 8 Energy Cannon 1 | . . . . . 1 7 5 5 4 2 . . Ballistic Gun 7 | . . 17 24 15 8 15 7 . 4 2 2 3 Ballistic Cannon 2 | . . . . . 5 . 1 5 . . . 4 Naked Turns . | . . . . . . . . . . . . . Heaviest Build 158 | 11 28 40 63 106 133 133 158 138 138 122 125 125 Greatest Support 138 | 20 32 32 10 48 40 22 87 28 28 70 126 138 Greatest Overweight (x) 34 | . 1 3 6 10 13 6 4 4 4 4 1 34 Average Overweight (x) 3 | . . 2 4 6 8 5 3 4 4 3 . 1 Largest Inventory Capacity 25 | . 15 15 20 25 25 25 25 25 25 25 25 25 Average Capacity 22 | . 14 15 15 22 25 25 25 25 25 25 25 25 Most Carried 25 | . 15 15 20 20 25 25 25 25 25 25 25 25 Average Carried 20 | . 11 14 15 18 24 24 22 20 24 23 21 21 Final Capacity 25 | 8 15 15 20 25 25 25 25 25 25 25 25 25 Final Carried 25 | 6 15 15 20 19 24 25 23 25 25 23 22 14 Class Distribution -------------------- 36% | Scavenger-Tank 12% | Skirmisher 11% | Scavenger-Skirmisher 11% | Mutant 8% | Tank 6% | Scavenger-Mutant 5% | Scavenger-Gunner Dominant Class ---------------- Mutant | -10/Materials Scavenger-Gunner | -9/Materials Tank | -8/Materials Scavenger-Assassin | -7/Factory Scavenger-Tank | -7/Storage Scavenger-Tank | -7/Recycling Scavenger-Tank | -5/Factory Tank | -5/Upper Caves Scavenger-Tank | -5/Upper Caves Skirmisher | -5/Zhirov Scavenger-Skirmisher | -4/Proximity Caves Scavenger-Skirmisher | -4/Factory Resources | -11 -10 -9 -8 -7 -7 -7 -5 -5 -5 -5 -4 -4 ----------- Run | Scr Mat Mat Mat Fac Sto Rec Fac Upp Upp Zhi Pro Fac Matter Collected 4943 | 200 300 345 398 102 1881 78 220 295 119 . 236 769 Remotely . | . . . . . . . . . . . . . Salvage Created 7035 | . 382 626 745 158 2332 392 477 114 39 . 156 1614 Parts 342 | . 24 42 41 7 120 19 20 3 . . 6 60 Haulers Intercepted 6 | . 1 . 1 . 4 . . . . . . . Recyclers Shooed 5 | . . . . . 1 1 . . . . . 3 Parts Field Recycled . | . . . . . . . . . . . . . Retrieved Matter . | . . . . . . . . . . . . . Parts Self-Destructed 4 | . . . . . . . . 1 . . 3 . Prevented . | . . . . . . . . . . . . . Kills | -11 -10 -9 -8 -7 -7 -7 -5 -5 -5 -5 -4 -4 ------- Run | Scr Mat Mat Mat Fac Sto Rec Fac Upp Upp Zhi Pro Fac Combat Hostiles Destroyed 116 | . 9 14 11 3 42 3 8 2 3 . 3 18 Guns 81 | . 9 14 11 3 25 3 7 . . . 2 7 Cannons 24 | . . . . . 13 . 1 2 3 . . 5 AOE 10 | . . . . . 4 . . . . . 1 5 Classes Destroyed 18 | . 4 4 3 . 4 1 . 1 . . . 1 Worker 11 | . . 1 . . 6 . . . . . . 4 Builder 21 | . . . 1 . 8 . . . . . . 12 Hauler 6 | . 1 . 1 . 4 . . . . . . . Recycler 13 | . . . 1 . 3 5 . . . . . 4 Operator 5 | . 2 1 . . 1 . 1 . . . . . Drone 3 | . . . . . . 3 . . . . . . Watcher 2 | . . 1 . . 1 . . . . . . . Swarmer 16 | . 2 3 . . 7 . . . 1 . 3 . Grunt 54 | . 7 7 8 3 21 . 3 1 1 . . 3 Brawler 2 | . . 1 . . . . 1 . . . . . Duelist 1 | . . . . . 1 . . . . . . . Sentry 15 | . . 3 2 . 5 . . . 1 . . 4 Specialist 4 | . . . . . 2 . . . . . . 2 Hunter 7 | . . . . . 1 . . 1 . . . 5 Programmer 10 | . . . . . 4 . 4 . . . . 2 Heavy 3 | . . . 1 . 1 . . . . . . 1 Behemoth 1 | . . . . . . . . . . . . 1 Samaritan 3 | . . . . . . . . 1 . . 2 . Best Kill Streak 14 | . 2 5 5 2 6 7 4 1 3 . 3 14 Combat Bots Only 6 | . 2 5 5 2 4 1 4 1 3 . 3 6 Max Kills in Single Turn 8 | . 1 1 2 1 3 3 1 1 1 . 2 8 Gunslinging 1 | . . . 1 . . . . . . . . . Exploded 3 | . . . . . 2 . . . . . 1 3 Melee . | . . . . . . . . . . . . . Uniques/NPCs Destroyed . | . . . . . . . . . . . . . Combat | -11 -10 -9 -8 -7 -7 -7 -5 -5 -5 -5 -4 -4 -------- Run | Scr Mat Mat Mat Fac Sto Rec Fac Upp Upp Zhi Pro Fac Damage Taken 13188 | . 475 339 827 209 3046 . 2009 93 238 1410 82 4460 Core 2287 | . 113 53 167 53 221 . 72 16 60 382 . 1150 Absorbed by Shields 260 | . . . . . . . 184 24 52 . . . Core Remaining (%) 68 | 100 54 86 69 . . 60 . . . . 41 . Volleys Fired 370 | . 43 27 39 9 100 7 34 9 8 6 9 79 Largest 4 | . 2 4 4 3 4 4 4 3 4 4 4 4 Hottest 258 | . 80 176 176 113 258 106 110 110 125 218 159 249 Shots Fired 1155 | . 86 93 125 27 350 28 118 19 19 24 31 235 Gun 873 | . 86 91 125 27 249 21 72 5 5 23 30 139 Cannon 271 | . . . . . 99 7 46 14 13 1 . 91 Launcher 9 | . . . . . 2 . . . 1 . 1 5 Special 2 | . . 2 . . . . . . . . . . Kinetic 576 | . . 40 104 18 188 14 52 9 7 7 4 133 Thermal 570 | . 86 53 21 9 160 14 66 10 11 17 26 97 Explosive 9 | . . . . . 2 . . . 1 . 1 5 Electromagnetic . | . . . . . . . . . . . . . Robot Hit Streak 24 | . 8 24 15 9 15 4 18 8 13 9 9 12 Robot Miss Streak 13 | . 3 3 5 2 13 3 3 1 2 1 3 8 Penetration Max 1 | . . . . . . . . . . . . 1 Secondary Targets 7 | . 2 . 3 . 1 . . . . . . 1 Max Gunslinging Chain 1 | . 1 . 1 . 1 . . . . . . 1 Shots Hit Robots 723 | . 58 58 87 19 225 10 53 8 14 18 16 157 Core Hits 380 | . 23 28 32 6 143 8 22 6 11 4 8 89 Critical Kills 2 | . . . . . . . . . . . . 2 Critical Parts Destroyed 5 | . . . 1 1 . . . . . . . 3 Critical Strikes 52 | . . 1 1 1 13 . 2 1 . 1 2 30 Burn 28 | . . 1 . . 10 . 1 . . 1 2 13 Destroy 12 | . . . 1 1 . . . . . . . 10 Blast 12 | . . . . . 3 . 1 1 . . . 7 Melee Attacks 24 | . . . 1 . 13 . 4 . . . . 6 Impact 11 | . . . . . 1 . 4 . . . . 6 Slashing 13 | . . . 1 . 12 . . . . . . . Piercing . | . . . . . . . . . . . . . Sneak Attacks 5 | . . . . . 3 . . . . . . 2 Combat Hostiles . | . . . . . . . . . . . . . Follow-up Attacks . | . . . . . . . . . . . . . Damage Inflicted 17819 | . 661 838 1313 288 5389 285 1376 261 736 428 474 5770 Guns 10494 | . 661 838 1313 288 3267 232 844 37 39 428 308 2239 Cannons 4456 | . . . . . 1546 53 516 224 538 . . 1579 Explosions 2245 | . . . . . 218 . . . 159 . 166 1702 Melee 580 | . . . . . 330 . . . . . . 250 Ramming 44 | . . . . . 28 . 16 . . . . . Kinetic 7820 | . . 398 1144 230 2391 193 659 142 377 63 . 2223 Thermal 7130 | . 661 440 169 58 2422 92 701 119 200 365 308 1595 Explosive 2245 | . . . . . 218 . . . 159 . 166 1702 Electromagnetic . | . . . . . . . . . . . . . Impact 358 | . . . . . 108 . . . . . . 250 Slashing 222 | . . . . . 222 . . . . . . . Piercing . | . . . . . . . . . . . . . Highest Corruption 7 | . . . 3 . 4 4 6 6 6 7 7 . Average Corruption 4 | . . . 3 . 4 4 6 6 6 6 7 . Corruption Purged . | . . . . . . . . . . . . . Effects 136 | . . . 10 . 52 4 5 18 15 11 21 . Message Errors 25 | . . . 2 . 8 . 1 3 2 1 8 . Matter Fused 33 | . . . 4 . 16 2 . 6 2 1 2 . Heat Flow Errors 23 | . . . 1 . 9 1 2 3 2 1 4 . Energy Discharges 18 | . . . 1 . 7 . . 3 3 2 2 . Parts Rejected 3 | . . . . . 2 . 1 . . . . . Data Loss (minor) 21 | . . . 2 . 7 1 . 2 3 2 4 . Data Loss (major) 4 | . . . . . . . . 1 3 . . . Misfires 6 | . . . . . . . 1 . . 4 1 . Weapon Failures 3 | . . . . . 3 . . . . . . . Overload Shots 12 | . . . . . 2 . . . . 4 . 6 Effects 1 | . . . . . . . . . . 1 . . Heat Surge 1 | . . . . . . . . . . 1 . . Overflow Damage 234 | . . . . . 105 . 5 . 4 . . 120 Projectiles 38 | . . . . . 12 . 5 . 4 . . 17 Explosions 12 | . . . . . . . . . . . . 12 Melee 184 | . . . . . 93 . . . . . . 91 Knockbacks 36 | . . . . . 24 . . 2 . . . 10 Impact 2 | . . . . . . . . . . . . 2 Kinetic 33 | . . . . . 23 . . 2 . . . 8 Secondary 1 | . . . . . 1 . . . . . . . Self-Inflicted Damage 404 | . . . . . 72 . . . . . 11 321 Shots 14 | . . . . . 2 . . . . . 1 11 Rammed 2 | . . . . . 1 . 1 . . . . . Targets Rammed 2 | . . . . . 1 . 1 . . . . . Kicked . | . . . . . . . . . . . . . Crushed . | . . . . . . . . . . . . . Highest Temperature 396 | . 330 148 276 26 396 220 175 185 252 132 226 348 Average Temperature 92 | . 125 53 142 11 82 134 56 90 120 59 73 95 Received Heat Transfer 2638 | . 234 129 324 135 918 . 250 7 35 72 . 534 Effects 4 | . 1 . 2 . . . . . . . . 1 Energy Bleed 2 | . 1 . . . . . . . . . . 1 Interference 2 | . . . 2 . . . . . . . . . Siege Activations . | . . . . . . . . . . . . . Robots Corrupted . | . . . . . . . . . . . . . Combat Hostiles . | . . . . . . . . . . . . . Parts Fried 6 | . . . . . 1 . . . . . . 5 Impact Corruptions 6 | . . . . . 2 . . . . . . 4 Robots Melted 1 | . . . . . . . . . . . . 1 Combat Hostiles 1 | . . . . . . . . . . . . 1 Parts Melted 21 | . 2 2 . . 10 . 1 . . . . 6 Heat Transferred 14422 | . 1475 1094 407 148 5064 148 1110 185 296 284 703 3508 Parts Sabotaged . | . . . . . . . . . . . . . Parts Stolen . | . . . . . . . . . . . . . Parts Stripped . | . . . . . . . . . . . . . Power Chain Reactions . | . . . . . . . . . . . . . Missiles Intercepted . | . . . . . . . . . . . . . Alert | -11 -10 -9 -8 -7 -7 -7 -5 -5 -5 -5 -4 -4 ------- Run | Scr Mat Mat Mat Fac Sto Rec Fac Upp Upp Zhi Pro Fac Peak Influence 1351 | . 257 277 246 200 832 400 1351 . . . . 314 Initial 1068 | . . 62 62 68 91 300 1068 . . . . . Average 427 | . 91 168 114 98 494 353 1207 . . . . 146 Maximum Alert Level 4 | . 1 1 1 1 3 2 4 . . . . 1 Low Security (%) 35 | . 87 55 89 98 6 . . . . . . 69 Level 1 29 | . 12 44 10 1 38 83 . . . . . 30 Level 2 12 | . . . . . 30 16 . . . . . . Level 3 12 | . . . . . 25 . 23 . . . . . Level 4 10 | . . . . . . . 76 . . . . . Level 5 . | . . . . . . . . . . . . . High Security . | . . . . . . . . . . . . . Max Security . | . . . . . . . . . . . . . Squads Dispatched 37 | . 2 2 2 2 14 . 10 . . . . 5 Investigation 5 | . . 1 . 1 1 . 2 . . . . . Extermination 8 | . . . . . 4 . 3 . . . . 1 Reinforcement 19 | . 2 1 2 1 7 . 2 . . . . 4 Assault 4 | . . . . . 1 . 3 . . . . . Garrison 1 | . . . . . 1 . . . . . . . Intercept . | . . . . . . . . . . . . . Construction Impeded 3 | . . . . . 1 . . . . . . 2 Haulers Reinforced 3 | . . . . . 3 . . . . . . . Active Scanning Responses . | . . . . . . . . . . . . . Cargo Convoy Interrupts 1 | . . . . . . . 1 . . . . . Stealth | -11 -10 -9 -8 -7 -7 -7 -5 -5 -5 -5 -4 -4 --------- Run | Scr Mat Mat Mat Fac Sto Rec Fac Upp Upp Zhi Pro Fac Distress Signals 13 | . 2 1 . 1 8 . . . . . . 1 Communications Jammed 30 | . . . . . 29 . . . . . . 1 Distress Signals 25 | . . . . . 24 . . . . . . 1 Times Spotted 200 | . 21 22 16 7 60 8 25 2 3 6 5 25 Peak Tracking Total 13 | . 5 4 5 3 6 3 13 1 3 3 5 5 Tactical Retreats 10 | . 3 . 1 2 2 . . . . . 1 1 Traps | -11 -10 -9 -8 -7 -7 -7 -5 -5 -5 -5 -4 -4 ------- Run | Scr Mat Mat Mat Fac Sto Rec Fac Upp Upp Zhi Pro Fac Traps Triggered 2 | . . . . . 2 . . . . . . . Indirectly . | . . . . . . . . . . . . . Trap Hack Attempts . | . . . . . . . . . . . . . Triggered . | . . . . . . . . . . . . . Disarmed . | . . . . . . . . . . . . . Reprogrammed . | . . . . . . . . . . . . . Reused . | . . . . . . . . . . . . . Traps Extracted . | . . . . . . . . . . . . . Installed . | . . . . . . . . . . . . . Triggered 1 | . . . . . . . 1 . . . . . Machines | -11 -10 -9 -8 -7 -7 -7 -5 -5 -5 -5 -4 -4 ---------- Run | Scr Mat Mat Mat Fac Sto Rec Fac Upp Upp Zhi Pro Fac Machines Disabled 22 | . . . . . 10 . 9 . . 1 1 1 Max in Single Turn 1 | . . . . . 1 . 1 . . 1 1 1 Garrison Access 2 | . . . . . 1 . 1 . . . . . Machines Sabotaged . | . . . . . . . . . . . . . Garrisons Compromised 1 | . . . . . . . 1 . . . . . Overloaded Fab Kills . | . . . . . . . . . . . . . Hacking | -11 -10 -9 -8 -7 -7 -7 -5 -5 -5 -5 -4 -4 --------- Run | Scr Mat Mat Mat Fac Sto Rec Fac Upp Upp Zhi Pro Fac Machines Accessed 24 | . 2 2 . 1 5 1 3 . 1 8 . 1 Terminals 10 | . 2 2 . . 4 1 . . . . . 1 Fabricators 4 | . . . . 1 . . 3 . . . . . Repair Stations . | . . . . . . . . . . . . . Recycling Units . | . . . . . . . . . . . . . Scanalyzers . | . . . . . . . . . . . . . Garrison Access 1 | . . . . . 1 . . . . . . . Total Hacks 91 | . 4 8 . 2 16 1 8 . 1 47 . 4 Successful 62 | . 1 1 . 1 6 1 3 . 1 47 . 1 Failed 29 | . 3 7 . 1 10 . 5 . . . . 3 Catastrophic 4 | . 1 1 . . 1 . . . . . . 1 Database Lockouts . | . . . . . . . . . . . . . Manual 21 | . 4 3 . 2 5 . 4 . . . 1 2 Terminals 28 | . 4 8 . . 11 1 . . . . . 4 Fabricators 10 | . . . . 2 . . 8 . . . . . Repair Stations . | . . . . . . . . . . . . . Recycling Units . | . . . . . . . . . . . . . Scanalyzers . | . . . . . . . . . . . . . Garrison Access 5 | . . . . . 5 . . . . . . . Terminal Hacks 57 | . 1 1 . . 5 1 . . 1 47 . 1 Record 35 | . . . . . . . . . . 35 . . Part Schematic 4 | . . . . . . . . . . 4 . . Robot Analysis 6 | . 1 1 . . . . . . . 4 . . Prototype ID Bank 4 | . . . . . . . . . . 4 . . Open Door 4 | . . . . . 3 . . . 1 . . . Level Access Points 1 | . . . . . . 1 . . . . . . Fabricator Index 1 | . . . . . . . . . . . . 1 Alert Level 1 | . . . . . 1 . . . . . . . Unreport Threat 1 | . . . . . 1 . . . . . . . Fabricator Hacks 2 | . . . . . . . 2 . . . . . Network Status 1 | . . . . . . . 1 . . . . . Build 1 | . . . . . . . 1 . . . . . Repair Station Hacks . | . . . . . . . . . . . . . Recycling Unit Hacks . | . . . . . . . . . . . . . Scanalyzer . | . . . . . . . . . . . . . Garrison Access Hacks 1 | . . . . . 1 . . . . . . . Seal Access 1 | . . . . . 1 . . . . . . . Unauthorized Hacks 2 | . . . . 1 . . 1 . . . . . Terminals . | . . . . . . . . . . . . . Fabricators 2 | . . . . 1 . . 1 . . . . . Fabnet 2 | . . . . 1 . . 1 . . . . . Repair Stations . | . . . . . . . . . . . . . Recycling Units . | . . . . . . . . . . . . . Scanalyzers . | . . . . . . . . . . . . . Garrison Access . | . . . . . . . . . . . . . Data Cores Recovered . | . . . . . . . . . . . . . Used . | . . . . . . . . . . . . . Hacking Detections 14 | . 2 2 . 1 4 1 3 . . . . 1 Full Trace Events 6 | . 1 1 . 1 1 . 2 . . . . . Feedback Events . | . . . . . . . . . . . . . Feedback Blocked . | . . . . . . . . . . . . . Robot Schematics Acquired . | . . . . . . . . . . . . . Robots Built 1 | . . . . . . . 1 . . . . . Authchips . | . . . . . . . . . . . . . Time 169 | . . . . . . . 169 . . . . . Total Robot Build Rating 6 | . . . . . . . 6 . . . . . Part Schematics Acquired 4 | . . . . . . . . . . 4 . . Parts Built . | . . . . . . . . . . . . . Authchips . | . . . . . . . . . . . . . Time . | . . . . . . . . . . . . . Total Part Build Rating . | . . . . . . . . . . . . . Parts Repaired . | . . . . . . . . . . . . . Time . | . . . . . . . . . . . . . Parts Recycled . | . . . . . . . . . . . . . Recycled Matter . | . . . . . . . . . . . . . Retrieved Matter . | . . . . . . . . . . . . . Retrieved Components . | . . . . . . . . . . . . . Parts Scanalyzed . | . . . . . . . . . . . . . Part Schematics Acquired . | . . . . . . . . . . . . . Parts Damaged . | . . . . . . . . . . . . . Bothacking | -11 -10 -9 -8 -7 -7 -7 -5 -5 -5 -5 -4 -4 ------------ Run | Scr Mat Mat Mat Fac Sto Rec Fac Upp Upp Zhi Pro Fac Used RIF Installer . | . . . . . . . . . . . . . Robots Hacked . | . . . . . . . . . . . . . Non-combat . | . . . . . . . . . . . . . Combat . | . . . . . . . . . . . . . Robot Hacks Applied . | . . . . . . . . . . . . . Relay Couplers Released 3 | . . . . . . . 3 . . . . . Machine Destruction 3 | . . . . . . . 3 . . . . . Fabnet Peak Effective % 3 | . . . . . . . 1 1 1 1 3 3 Robots Rewired . | . . . . . . . . . . . . . Allies Hacked 1 | . . . . . . . 1 . . . . . Hacks Repelled . | . . . . . . . . . . . . . Allies | -11 -10 -9 -8 -7 -7 -7 -5 -5 -5 -5 -4 -4 -------- Run | Scr Mat Mat Mat Fac Sto Rec Fac Upp Upp Zhi Pro Fac Total Allies 2 | . . . . . 1 . 1 . . . . . Largest Group 1 | . . . . . 1 1 1 . . . . . Highest-Rated Group 100 | . . . . . 100 100 49 . . . . . Highest-Rated Ally 100 | . . . . . 100 100 49 . . . . . Total Orders 11 | . . . . . . . 4 4 3 . . . EXPLORE 9 | . . . . . . . 3 4 2 . . . RETURN 2 | . . . . . . . 1 . 1 . . . Ally Attacks 6 | . . . . . 1 . 5 . . . . . Total Damage 421 | . . . . . 32 . 389 . . . . . Kills 3 | . . . . . 1 . 2 . . . . . Allies Corrupted . | . . . . . . . . . . . . . Allies Melted . | . . . . . . . . . . . . . Intel | -11 -10 -9 -8 -7 -7 -7 -5 -5 -5 -5 -4 -4 ------- Run | Scr Mat Mat Mat Fac Sto Rec Fac Upp Upp Zhi Pro Fac Robot Analysis Total 6 | . 1 1 . . . . . . . 4 . . Derelict Logs Recovered 4 | . . . . . . . . 1 1 . 2 . Drone Launches 8 | . . . . . . . 3 4 1 . . . Drone Recoveries 6 | . . . . . . . 3 2 1 . . . Exploration | -11 -10 -9 -8 -7 -7 -7 -5 -5 -5 -5 -4 -4 ------------- Run | Scr Mat Mat Mat Fac Sto Rec Fac Upp Upp Zhi Pro Fac Turns Passed 9884 | . 790 861 579 182 2880 310 1002 587 657 410 844 782 Spaces Moved 4662 | 1 469 500 284 78 1009 175 569 343 384 155 439 256 Core 4 | . . . . . . . . . . . . 4 Treads 632 | . . 28 . 2 8 . 4 . . 42 439 109 Legs 189 | 1 188 . . . . . . . . . . . Wheels 3837 | . 281 472 284 76 1001 175 565 343 384 113 . 143 Hover . | . . . . . . . . . . . . . Flight . | . . . . . . . . . . . . . Fastest Speed 100 | 120 100 100 125 170 170 155 135 160 160 160 160 116 Average Speed 166 | 120 126 133 143 186 222 159 136 160 160 181 181 158 Slowest Speed 1750 | 120 190 240 170 325 410 170 330 160 160 240 240 1750 Overloaded Moves . | . . . . . . . . . . . . . Propulsion Burnouts . | . . . . . . . . . . . . . Robots Hopped . | . . . . . . . . . . . . . Cave-ins Triggered 1 | . . . . . . . 1 . . . . . Teleports 1 | . . . . . . . . . . 1 . . Exploration Rate (%) 44 | 2 53 37 23 2 93 38 20 65 82 84 63 12 Regions Visited 12 Branch Regions 6 Pre-discovered Areas 3 | . . . . . . . . . . 3 . . Known Exits Taken 1 | . . . . . . 1 . . . . . . Unknown Exits Taken 11 | 1 1 1 1 1 1 . 1 1 1 1 1 . Scrap Searched 8 | . . . . . . . . 2 3 . 3 . Spaces Dug 23 | . . 2 1 . 3 . 13 2 1 . . 1 Terrain Destroyed 236 | . . 2 1 . 41 5 29 13 22 . 9 114 Melee 7 | . . . 1 . 2 . 3 . . . . 1 Projectile 106 | . . 2 . . 28 5 26 13 2 . . 30 AOE 123 | . . . . . 11 . . . 20 . 9 83 Terrain Rammed . | . . . . . . . . . . . . . Walls Destroyed . | . . . . . . . . . . . . . Machines Disabled . | . . . . . . . . . . . . . Actions | -11 -10 -9 -8 -7 -7 -7 -5 -5 -5 -5 -4 -4 --------- Run | Scr Mat Mat Mat Fac Sto Rec Fac Upp Upp Zhi Pro Fac Total 5950 | . 580 634 376 98 1411 189 710 365 408 269 464 446 Wait 477 | . 33 65 16 3 115 2 73 4 1 105 . 60 Move 4649 | . 468 499 283 77 1008 174 567 342 383 154 438 256 Hop . | . . . . . . . . . . . . . Pick Up 85 | . 13 5 9 3 32 2 4 5 1 . 2 9 Fast Attach 66 | . 3 2 7 . 27 1 4 3 5 2 3 9 Attach 63 | . . 2 3 2 15 1 8 2 2 2 7 19 Detach 23 | . 1 . . . 9 . 5 . 2 . 3 3 Swap 81 | . 8 18 5 2 34 . 6 . 3 . 2 3 Drop 109 | . 11 16 13 2 57 2 3 . 3 . . 2 Fire 370 | . 43 27 39 9 100 7 34 9 8 6 9 79 Melee 24 | . . . 1 . 13 . 4 . . . . 6 Ram 1 | . . . . . 1 . . . . . . . Kick . | . . . . . . . . . . . . . Crush 1 | . . . . . . . 1 . . . . . Escape Stasis 1 | . . . . . . . 1 . . . . . Rewire . | . . . . . . . . . . . . . Trap . | . . . . . . . . . . . . . Miscellaneous . | . . . . . . . . . . . . . Route ------- -11/Scrapyard -10/Materials (discovered 3 exits: *Mat x2 / [*Min]) -9/Materials -8/Materials -7/Factory -7/Storage (discovered 2 exits: [*Fac] / *Rec) -7/Recycling -5/Factory -5/Upper Caves -5/Upper Caves -5/Zhirov -4/Proximity Caves -4/Factory (discovered 2 exits: Res / Ext) History --------- Turn | Location | Event 1 | -11/Scrapyard | Discovered new exit (range 0) 1 | -11/Scrapyard | Entered Materials 315 | -10/Materials | Build established: Mutant 449 | -10/Materials | Discovered new exit (range 16) 679 | -10/Materials | Discovered new exit (range 14) 733 | -10/Materials | Discovered new exit (range 12) 791 | -10/Materials | Entered another Materials area 791 | -9/Materials | Evolved 2 slots: Weapon x2 1484 | -9/Materials | Discovered new exit (range 10) 1652 | -9/Materials | Entered another Materials area 1652 | -8/Materials | Evolved 2 slots: Utility x2 1886 | -8/Materials | Found Prototype Device 2211 | -8/Materials | Discovered new exit (range 10) 2231 | -8/Materials | Entered Factory 2231 | -7/Factory | Evolved 2 slots: Utility x2 2232 | -7/Factory | Identified Active Sensor Suite 2307 | -7/Factory | Discovered new exit (range 11) 2413 | -7/Factory | Entered Storage 3106 | -7/Storage | Garrison activated, responded to threat 3120 | -7/Storage | Build established: Scavenger-Tank 3127 | -7/Storage | Used back door to open Recycling access 3127 | -7/Storage | Discovered new exit (range 5) 3271 | -7/Storage | Found Prototype Launcher 3271 | -7/Storage | Identified Rocket Array 3275 | -7/Storage | Found Rocket Array 4050 | -7/Storage | Lost 3 parts (1n2u) 4145 | -7/Storage | Found Rocket Array 4602 | -7/Storage | Discovered new exit (range 16) 4728 | -7/Storage | Met 01-MTF 5213 | -7/Storage | First assault squad dispatched 5293 | -7/Storage | Entered Recycling 5293 | -7/Recycling | Accompanied by 1 ally (01-MTF) 5298 | -7/Recycling | 01-MTF left 5398 | -7/Recycling | Spotter reported a threat 5399 | -7/Recycling | Spotter reported a threat 5415 | -7/Recycling | Spotter reported a threat 5415 | -7/Recycling | Spotter reported a threat 5451 | -7/Recycling | Spotter reported a threat 5469 | -7/Recycling | Spotter reported a threat 5530 | -7/Recycling | Spotter reported a threat 5553 | -7/Recycling | Identified exit to Factory 5583 | -7/Recycling | Spotter reported a threat 5603 | -7/Recycling | Entered Factory 5603 | -5/Factory | Evolved 4 slots: Propulsion x2, Utility x2 5828 | -5/Factory | Fabricated D-63 Destroyer? 6427 | -5/Factory | Cargo convoy interrupted 6435 | -5/Factory | Crushed by falling debris 6503 | -5/Factory | First assault squad dispatched 6581 | -5/Factory | Discovered new exit (range 9) 6605 | -5/Factory | Entered Upper Caves 6635 | -5/Upper Caves | Lost 5 parts (3n2u) 6741 | -5/Upper Caves | Build established: Tank 6920 | -5/Upper Caves | Learned Factory terminal intel 7171 | -5/Upper Caves | Discovered new exit (range 11) 7192 | -5/Upper Caves | Entered another Upper Caves area 7275 | -5/Upper Caves | Attracted the attention of an 0b10 checkpoint 7319 | -5/Upper Caves | Build established: Scavenger-Tank 7325 | -5/Upper Caves | Lost 3 parts (1n1u1w) 7638 | -5/Upper Caves | Discovered new exit (range 43) 7766 | -5/Upper Caves | Learned 8 Factory zone layouts 7849 | -5/Upper Caves | Entered Zhirov 7849 | -5/Zhirov | Discovered new exit (range 3) 7878 | -5/Zhirov | Met Zhirov 7909 | -5/Zhirov | Learned location of Quarantine (-3) 7909 | -5/Zhirov | Learned location of Testing (-2) 7909 | -5/Zhirov | Learned location of Command (-1) 7941 | -5/Zhirov | Zhirov requested help retrieving the SGEMP Prototype 7984 | -5/Zhirov | Found Alien Artifact 7984 | -5/Zhirov | Identified Integrated Dissipator 7984 | -5/Zhirov | Installed Integrated Dissipator, increased core heat dissipation (+20) 8005 | -5/Zhirov | Build established: Skirmisher 8013 | -5/Zhirov | Found Alien Artifact 8013 | -5/Zhirov | Identified Transdimensional Reconstructor 8013 | -5/Zhirov | Warped through subspace 8033 | -5/Zhirov | Attacked by Zhirov 8052 | -5/Zhirov | Zhirov warped through subspace 8058 | -5/Zhirov | Zhirov detonated his lab 8058 | -5/Zhirov | Cloak Generator disabled 8059 | -5/Zhirov | Core integrity fell below 50% 8089 | -5/Zhirov | Lost 7 parts (1p1n2u3w) 8259 | -5/Zhirov | Entered Proximity Caves 8667 | -4/Proximity Caves | Learned Research emergency access door positions 8731 | -4/Proximity Caves | Learned Research stockpile data 8845 | -4/Proximity Caves | Build established: Scavenger-Skirmisher 9053 | -4/Proximity Caves | Discovered new exit (range 14) 9067 | -4/Proximity Caves | Acquired the password to a Derelict Tinkerer's latest research 9075 | -4/Proximity Caves | Found Prototype Special Weapon 9098 | -4/Proximity Caves | Identified Molecular Deconstructor 9103 | -4/Proximity Caves | Entered Factory 9103 | -4/Factory | Evolved 2 slots: Utility x2 9104 | -4/Factory | Identified exit to Research 9104 | -4/Factory | Identified exit to Extension 9105 | -4/Factory | Loaded intel: 28 terminal locations 9361 | -4/Factory | Lost 4 parts (3n1w) 9704 | -4/Factory | Lost 15 parts (2p3n8u2w) 9709 | -4/Factory | Spotted B-86 Titan 9751 | -4/Factory | Core integrity fell below 50% 9771 | -4/Factory | Destroyed B-86 Titan 9802 | -4/Factory | Lost 8 parts (1p3n4w) 9847 | -4/Factory | Core integrity fell below 20% 9877 | -4/Factory | Lost 4 parts (1p1n2u) 9885 | -4/Factory | Destroyed by H-77 Assassin with Coil Gun Last Messages --------------- 09862_ U-05 Engineer builds a Wall. 09862_ Penetrated by Slug. 09863_ K-01 Serf collects debris. 09865_ U-05 Engineer lays Concrete. 09866_ Slug penetrates R-10 Processor. 09866_ R-10 Processor collects Myomer Leg. 09867_ U-05 Engineer builds a Wall. 09867_ K-01 Serf collects debris. 09867_ Destroyed Hpw. Tractor Beam. 09867_ Destroyed Com. Wheel. 09869_ K-01 Serf collects debris. 09869_ U-05 Engineer lays Concrete. 09871_ U-05 Engineer builds a Wall. 09871_ Slug penetrates Wall. 09871_ K-01 Serf collects debris. 09877_ Slug penetrates Wall. 09878_ K-01 Serf collects debris. 09882_ Penetrated by Slug. 09882_ U-05 Engineer lays Concrete. 09884_ K-01 Serf collects debris. Map ----- +----------------------------------------------------+ | ?????????????????????????????????????????????? # | | ?????????????????????????????????????????????? # | | ?????????????????????????????????????????????? # | | ?????????????????????????????????????????????? # | | ?????????????????????????????????????????????? # | | ?????????????????????????????????????????????? # | | ??????????????????????????????????????????????#### | | ?????????????????????????????????????????????????? | | ??????????????????????????????????????????????#### | | ?????????????????????????????????????????????? | | ?????????????????????????????????????????????? | | ???????????????????# ?????????????????????????"" | | ???????????????????# ?????????????????????????"" | | ??????????????????## #????????????????????????"" | | ??????????????????? #???????????#????????????"" | | ??##????###??###???# ####???####R#???????????? | | ??# ??? ?? #???# ####"T"# #???????????????? | | ??# ??" "" #???# #???????????????? | | ??# "" "" #???# #??#????????????? | | ??# """ """ #??## """ !!!## #????????????? | | ??# "" """ #?## ""F"" !!!; #????????????? | | ??+ " " """ #?# "" "" !!!;"######+##?????? | | ??# ### # % ???? | | ??# # # kk h% ???? | | ??# ! # % % ???? | | ??# ## @###########????????????? | | ??# # # ## #######??????????? | | ??+ # # # #??????????? | | ??##########+# # # #??????????? | | ######## ## # # #??????????? | | # #??????????? | | + #??????????? | | # #??????????? | | #### ##### ######## ## ! #??????????? | | ???#?????## ## # ### ## #??????????? | | ?#????#?#?# #######?# #?? #??????????? | | ?????#????# #????#??# #??? #??????????? | | ???? ????## ##??????# #???? #??????????? | | ??#???????# ####????#+#?? ?? #??????????? | | ???#?#??#?# #" ??????????????########??????????? | | ####+###### ##??????"??????????????????????????? | | # %##??????????????????????????????" | | "" "" #% ##??????""?????????????????????? | | "" "" %# %#???????? ??????????????????????#### | | " """ """ / #???######?????????????????????????? | | ? """ """ #% %#? #??????????????????????#### | | ? """ "" #% #? """ #??????????????????"""T""" | | ? # #? """ #?#???????????????????? | | ! # #? """ #?????????????????????? | | # # #?????????????????????? | +----------------------------------------------------+ Best States ------------- Heat Dissipation 91 Energy Generation 18 Energy Capacity 800 Matter Stores 300 Matter Capacity 300 Sight Range 20 Robot Scan Range 20 Terrain Scan Range 16 Terrain Scan Density 10 Jamming Range 8 Additional Mass Support 12 Corruption Prevention 20 Armor Coverage 825 Resistance: EX 50 Resistance: EM 15 Thermal Conversion 60 Evasion (%) 55 Targeting Accuracy 6 Target Analysis 8 Recoil Reduction 4 Offensive Hacking 14 Item Schematics ----------------- Assault Drone Bay | -5/Zhirov | Free Exp. Heat Sink | -5/Zhirov | Free Exp. Optical Array | -5/Zhirov | Free Imp. Arc Thrower | -5/Zhirov | Free Robot Schematics ------------------ None Fabricated ------------ D-63 Destroyer | x1 | -5/Factory | Preloaded Alien Tech Used ----------------- Integrated Dissipator Transdimensional Reconstructor Achievements -------------- None Challenges ------------ None Game ------ Seed CloakLongswordRegenerator Manual? 0 Play Time 01:13:26 Cumulative 175.1 hours Start 2021.12.08 @ 11:05:37 End 2021.12.08 @ 13:47:49 Sessions 1 Manual Loads 0 Difficulty Rogue Special Mode None Game No. 236 Rogue 236 Adventurer 0 Explorer 0 Win Type - Total 2 Types 2/0/0/0/0/0/0/0/0 Lore% 59 Gallery% 72 Achievement% 51 Wizard Run 0 Options --------- ASCII 0 Keyboard 1 Movement Vi Keybinds 0 Fullscreen 1 Font 16/Cog Map View 76x50 Tactical HUD 1 Map Filters NONE Filters NONE Steam 1 RUN: 3532ec8c-cc66-44c3-aef3-67586682dab8